[Event "Schachfestival IM 2018"]
[Site "Lueneburg"]
[Date "2018.07.07"]
[Round "3"]
[White "Polster, Christian"]
[Black "Fuchs, Judith"]
[Result "1-0"]
[ECO "B24"]
[WhiteElo "2286"]
[BlackElo "2289"]
[Annotator "NA"]
[PlyCount "93"]
[EventDate "2018.07.05"]
[EventType "tourn"]
[EventCountry "GER"]
[SourceTitle "playchess.com"]
[Source "ChessBase"]
[SourceQuality "1"]
[TimeControl "40/5400+30:1800+30"]

1. e4 {[%emt 0:00:00]} c5 {[%emt 0:00:00]} 2. Nc3 {[%emt 0:00:00]} Nc6 {[%emt 0:00:00]} 3. Nf3 {[%emt 0:00:40]} b6 {[%emt 0:04:17]} 4. d4 {[%emt 0:04:14]} cxd4 {[%emt 0:00:09]} 5. Nxd4 {[%emt 0:00:08]} Bb7 {[%emt 0:00:10]} 6. Be3 {[%emt 0:02:42]} Nf6 {[%emt 0:04:39]} 7. f3 {[%emt 0:04:13]} e6 {[%emt 0:06:10]} 8. Qd2 {[%emt 0:05:50]} Bb4 {[%emt 0:13:24]} 9. a3 {[%emt 0:06:22]} Bxc3 {[%emt 0:05:47]} 10. Qxc3 {[%emt 0:00:15]} O-O {[%emt 0:00:25]} 11. Nxc6 {[%emt 0:15:24]} Bxc6 {[%emt 0:00:41]} 12. Ba6 {[%emt 0:04:50]} Ne8 {[%emt 0:07:24]} 13. a4 {[%emt 0:02:34]} Nc7 {[%emt 0:01:25]} 14. Bd3 {[%emt 0:01:59]} f5 {[%emt 0:02:23]} 15. exf5 {[%emt 0:03:26]} Nd5 {[%emt 0:00:16]} 16. Qd2 {[%emt 0:04:16]} Nxe3 {[%emt 0:03:19]} 17. Qxe3 {[%emt 0:00:10]} exf5 {[%emt 0:00:48]} 18. O-O {[%emt 0:01:07]} Qf6 {[%emt 0:01:13]} 19. c3 {[%emt 0:02:42]} Rfe8 {[%emt 0:03:36]} 20. Qf4 {[%emt 0:04:22]} Re5 {[%emt 0:03:29]} 21. Rfe1 {[%emt 0:05:45]} Rae8 {[%emt 0:03:09]} 22. Rxe5 {[%emt 0:00:41]} Rxe5 {[%emt 0:00:27]} 23. Bc4+ {[%emt 0:02:38]} Kh8 {[%emt 0:01:36]} 24. Qd4 {[%emt 0:08:24]} Qe7 {[%emt 0:01:57]} 25. Kf2 {[%emt 0:01:33]} h6 {[%emt 0:07:09]} 26. b4 {[%emt 0:01:44]} Kh7 {[%emt 0:08:04]} 27. b5 {[%emt 0:02:01]} Bb7 {[%emt 0:00:34]} 28. a5 {[%emt 0:01:24]} d6 {[%emt 0:14:05]} 29. axb6 {[%emt 0:02:53]} axb6 {[%emt 0:00:01]} 30. Ra7 {[%emt 0:01:02]} Rc5 {[%emt 0:01:02]} 31. g3 {[%emt 0:03:15]} Rc7 {[%emt 0:05:23]} 32. Bd3 {[%emt 0:03:50]} Qg5 {[%emt 0:00:30]} 33. Qe3 {[%emt 0:02:20]} Qh5 {[%emt 0:01:10]} 34. Kg1 {[%emt 0:01:25]} Qf7 {[%emt 0:01:27]} 35. Qxb6 {[%emt 0:02:26]} Re7 {[%emt 0:00:40]} 36. Qf2 {[%emt 0:00:46]} Qd5 {[%emt 0:00:32]} 37. Bf1 {[%emt 0:00:32]} Kh8 {[%emt 0:00:30]} 38. c4 {[%emt 0:00:21]} Qd1 {[%emt 0:00:22]} 39. Ra3 {[%emt 0:00:37]} f4 {[%emt 0:00:31]} 40. Rd3 {[%emt 0:00:29]} fxg3 {[%emt 0:00:31]} 41. Rxd1 {[%emt 0:01:36]} gxf2+ {[%emt 0:00:06]} 42. Kxf2 {[%emt 0:00:07]} Rf7 {[%emt 0:03:02]} 43. Be2 {[%emt 0:02:41]} g5 {[%emt 0:07:32]} 44. Rxd6 {[%emt 0:02:28]} g4 {[%emt 0:00:04]} 45. c5 {[%emt 0:01:07]} Be4 {[%emt 0:01:32]} 46. c6 {[%emt 0:01:31]} gxf3 {[%emt 0:00:23]} 47. Bd3 {[%emt 0:00:45]} 1-0

[Event "Schachfestival IM 2018"]
[Site "Lueneburg"]
[Date "2018.07.08"]
[Round "4"]
[White "Mirzoev, Azer"]
[Black "Pubantz, Jan"]
[Result "1-0"]
[ECO "D37"]
[WhiteElo "2506"]
[BlackElo "1997"]
[Annotator "RC"]
[PlyCount "95"]
[EventDate "2018.07.05"]
[EventType "tourn"]
[EventCountry "GER"]
[SourceTitle "playchess.com"]
[Source "ChessBase"]
[SourceQuality "1"]
[TimeControl "40/5400+30:1800+30"]

1. d4 {[%emt 0:05:16]} Nf6 {[%emt 0:00:00]} 2. Nf3 {[%emt 0:00:16]} d5 {[%emt 0:00:06]} 3. c4 {[%emt 0:00:05]} e6 {[%emt 0:00:25]} 4. Nc3 {[%emt 0:00:14]} dxc4 {[%emt 0:00:47]} 5. e3 {[%emt 0:00:06]} a6 {[%emt 0:00:12]} 6. a4 {[%emt 0:00:10]} c5 {[%emt 0:04:58]} 7. Bxc4 {[%emt 0:02:38]} Nc6 {[%emt 0:00:32]} 8. O-O {[%emt 0:00:10]} Bd6 {[%emt 0:08:35]} 9. h3 {[%emt 0:02:47]} O-O {[%emt 0:00:14]} 10. Qe2 {[%emt 0:00:23]} b6 {[%emt 0:06:28]} 11. Rd1 {[%emt 0:03:53]} Qc7 {[%emt 0:02:57]} 12. d5 {[%emt 0:03:36]} exd5 {[%emt 0:04:42]} 13. Nxd5 {[%emt 0:00:05]} Nxd5 {[%emt 0:01:10]} 14. Bxd5 {[%emt 0:00:04]} Bb7 {[%emt 0:07:03]} 15. e4 {[%emt 0:05:17]} Rae8 {[%emt 0:14:38]} 16. Be3 {[%emt 0:02:54]} Bf4 {[%emt 0:04:48]} 17. Bxf4 {[%emt 0:13:25]} Qxf4 {[%emt 0:00:11]} 18. Ra3 {[%emt 0:09:18]} Re7 {[%emt 0:08:45]} 19. Re3 {[%emt 0:01:13]} Rfe8 {[%emt 0:02:21]} 20. b3 {[%emt 0:08:17]} Qc7 {[%emt 0:03:27]} 21. e5 {[%emt 0:09:32]} Nd8 {[%emt 0:06:39]} 22. Bxb7 {[%emt 0:02:20]} Qxb7 {[%emt 0:00:09]} 23. Nh4 {[%emt 0:00:53]} g6 {[%emt 0:04:49]} 24. Qg4 {[%emt 0:00:45]} Qc7 {[%emt 0:06:25]} 25. f4 {[%emt 0:01:34]} Nc6 {[%emt 0:03:21]} 26. Nf5 {[%emt 0:02:08]} Re6 {[%emt 0:00:05]} 27. Kh2 {[%emt 0:04:33]} Rd8 {[%emt 0:05:07]} 28. Nd6 {[%emt 0:02:05]} Qe7 {[%emt 0:00:46]} 29. Rg3 {[%emt 0:01:23]} Nd4 {[%emt 0:01:05]} 30. b4 {[%emt 0:01:17]} Kf8 {[%emt 0:01:44]} 31. Rgd3 {[%emt 0:04:40]} Rxe5 {[%emt 0:02:24]} 32. Nxf7 {[%emt 0:01:13]} Kxf7 {[%emt 0:00:29]} 33. fxe5 {[%emt 0:00:04]} Qxe5+ {[%emt 0:00:13]} 34. Kh1 {[%emt 0:00:06]} Kg7 {[%emt 0:00:45]} 35. bxc5 {[%emt 0:00:09]} bxc5 {[%emt 0:00:09]} 36. Qg3 {[%emt 0:01:54]} Qxg3 {[%emt 0:00:49]} 37. Rxg3 {[%emt 0:00:06]} Kf6 {[%emt 0:00:36]} 38. Rb1 {[%emt 0:00:17]} Rd6 {[%emt 0:00:19]} 39. Rb7 {[%emt 0:00:17]} h5 {[%emt 0:00:31]} 40. a5 {[%emt 0:00:48]} Ne2 {[%emt 0:00:43]} 41. Rf3+ {[%emt 0:30:20]} Kg5 {[%emt 0:30:13]} 42. Re7 {[%emt 0:05:19]} Rd2 {[%emt 0:00:00]} 43. Re5+ {[%emt 0:00:00]} Kh6 {[%emt 0:00:00]} 44. Rxc5 {[%emt 0:00:00]} h4 {[%emt 0:00:00]} 45. Kh2 {[%emt 0:00:00]} Rd1 {[%emt 0:00:00]} 46. Rc4 {[%emt 0:00:00]} Kh5 {[%emt 0:00:00]} 47. Rf8 {[%emt 0:00:00]} g5 {[%emt 0:00:00]} 48. Rc6 {[%emt 0:00:00]} 1-0

[Event "Schachfestival IM 2018"]
[Site "Lueneburg"]
[Date "2018.07.08"]
[Round "4"]
[White "Simantsev, Mikhail"]
[Black "Polster, Christian"]
[Result "1-0"]
[ECO "A61"]
[WhiteElo "2434"]
[BlackElo "2286"]
[Annotator "ChessBase"]
[PlyCount "82"]
[EventDate "2018.07.05"]
[EventType "tourn"]
[EventCountry "GER"]
[SourceTitle "playchess.com"]
[Source "ChessBase"]
[SourceQuality "1"]
[TimeControl "40/5400+30:1800+30"]

1. d4 {[%emt 0:04:12]} Nf6 {[%emt 0:00:00]} 2. c4 {[%emt 0:01:15]} e6 {[%emt 0:00:00]} 3. Nf3 {[%emt 0:01:37]} c5 {[%emt 0:00:09]} 4. d5 {[%emt 0:00:28]} d6 {[%emt 0:00:13]} 5. Nc3 {[%emt 0:00:05]} exd5 {[%emt 0:00:08]} 6. cxd5 {[%emt 0:00:02]} g6 {[%emt 0:00:12]} 7. Bf4 {[%emt 0:00:37]} a6 {[%emt 0:03:21]} 8. a4 {[%emt 0:03:47]} Bg7 {[%emt 0:00:15]} 9. h3 {[%emt 0:00:16]} O-O {[%emt 0:00:20]} 10. e3 {[%emt 0:00:02]} Re8 {[%emt 0:00:29]} 11. Nd2 {[%emt 0:00:27]} Nbd7 {[%emt 0:00:17]} 12. Be2 {[%emt 0:00:04]} Ne5 {[%emt 0:00:26]} 13. O-O {[%emt 0:00:19]} Nfd7 {[%emt 0:00:33]} 14. Re1 {[%emt 0:02:19]} f5 {[%emt 0:01:23]} 15. Qb3 {[%emt 0:09:45]} b6 {[%emt 0:07:25]} 16. Bg3 {[%emt 0:17:06]} Bb7 {[%emt 0:04:25]} 17. Rad1 {[%emt 0:08:43]} Rb8 {[%emt 0:03:48]} 18. e4 {[%emt 0:07:48]} Rf8 {[%emt 0:15:30]} 19. exf5 {[%emt 0:09:32]} gxf5 {[%emt 0:00:45]} 20. f4 {[%emt 0:11:24]} Nf7 {[%emt 0:09:10]} 21. Bd3 {[%emt 0:04:18]} Nh6 {[%emt 0:03:45]} 22. Qc2 {[%emt 0:03:50]} Nf6 {[%emt 0:24:23]} 23. Bh4 {[%emt 0:02:11]} Bc8 {[%emt 0:01:05]} 24. Nf3 {[%emt 0:00:33]} Qc7 {[%emt 0:03:56]} 25. Ng5 {[%emt 0:05:03]} c4 {[%emt 0:00:50]} 26. Bf1 {[%emt 0:00:01]} b5 {[%emt 0:00:59]} 27. axb5 {[%emt 0:00:01]} axb5 {[%emt 0:00:07]} 28. Ne6 {[%emt 0:00:18]} Bxe6 {[%emt 0:05:29]} 29. dxe6 {[%emt 0:00:01]} Kh8 {[%emt 0:06:44]} 30. Kh2 {[%emt 0:00:56]} Nhg8 {[%emt 0:01:14]} 31. Qxf5 {[%emt 0:03:11]} Ne7 {[%emt 0:01:45]} 32. Qc2 {[%emt 0:01:04]} b4 {[%emt 0:01:07]} 33. Bxf6 {[%emt 0:02:44]} Bxf6 {[%emt 0:00:10]} 34. Nd5 {[%emt 0:00:25]} Nxd5 {[%emt 0:02:17]} 35. Rxd5 {[%emt 0:00:01]} Rbc8 {[%emt 0:03:55]} 36. Qe4 {[%emt 0:00:58]} Rg8 {[%emt 0:00:51]} 37. Rf5 {[%emt 0:01:25]} Qe7 {[%emt 0:00:25]} 38. Bxc4 {[%emt 0:00:13]} Rcf8 {[%emt 0:00:35]} 39. b3 {[%emt 0:00:22]} Bc3 {[%emt 0:00:26]} 40. Rf7 {[%emt 0:01:57]} Qh4 {[%emt 0:00:36]} 41. Re3 {[%emt 0:30:31]} Bg7 {[%emt 0:05:51]} 1-0

[Event "Schachfestival IM 2018"]
[Site "Lueneburg"]
[Date "2018.07.08"]
[Round "4"]
[White "Sriram, Jha"]
[Black "Wenzel, Birger"]
[Result "1-0"]
[ECO "A41"]
[WhiteElo "2409"]
[BlackElo "2084"]
[Annotator "ChessBase"]
[PlyCount "53"]
[EventDate "2018.07.05"]
[EventType "tourn"]
[EventCountry "GER"]
[SourceTitle "playchess.com"]
[Source "ChessBase"]
[SourceQuality "1"]
[TimeControl "40/5400+30:1800+30"]

1. d4 {[%emt 0:00:02]} d6 {[%emt 0:00:00]} 2. e4 {[%emt 0:01:55]} Nf6 {[%emt 0:00:00]} 3. f3 {[%emt 0:00:26]} d5 {[%emt 0:00:00]} 4. e5 {[%emt 0:00:46]} Nfd7 {[%emt 0:00:03]} 5. f4 {[%emt 0:01:49]} c5 {[%emt 0:00:07]} 6. Nf3 Nc6 7. c3 {[%emt 0:22:23]} cxd4 {[%emt 0:00:43]} 8. cxd4 {[%emt 0:04:28]} Nb6 {[%emt 0:00:09]} 9. Be2 {[%emt 0:02:28]} Bg4 {[%emt 0:01:11]} 10. O-O {[%emt 0:01:19]} e6 {[%emt 0:00:57]} 11. b3 {[%emt 0:04:00]} Rc8 {[%emt 0:02:59]} 12. Bb2 {[%emt 0:01:03]} Be7 {[%emt 0:01:42]} 13. h3 {[%emt 0:02:22]} Bxf3 {[%emt 0:02:58]} 14. Rxf3 {[%emt 0:01:07]} g6 {[%emt 0:05:44]} 15. Nd2 {[%emt 0:02:52]} h5 {[%emt 0:01:16]} 16. Rc1 {[%emt 0:01:45]} h4 {[%emt 0:02:52]} 17. Rfc3 {[%emt 0:11:00]} Na8 {[%emt 0:17:57]} 18. Nf3 {[%emt 0:02:02]} Qb6 {[%emt 0:00:34]} 19. a3 {[%emt 0:06:31]} Nc7 {[%emt 0:01:02]} 20. b4 {[%emt 0:05:57]} a6 {[%emt 0:08:25]} 21. Kh1 {[%emt 0:01:23]} Kd7 {[%emt 0:09:16]} 22. Qd3 Na7 {[%emt 0:05:24]} 23. R3c2 {[%emt 0:06:24]} Na8 {[%emt 0:02:59]} 24. Rc5 {[%emt 0:03:56]} Qd8 {[%emt 0:10:57]} 25. Rxc8 {[%emt 0:00:26]} Nxc8 {[%emt 0:00:07]} 26. Qb5+ {[%emt 0:00:10]} axb5 {[%emt 0:00:22]} 27. Bxb5# {[%emt 0:00:02]} 1-0

[Event "Schachfestival IM 2018"]
[Site "Lueneburg"]
[Date "2018.07.08"]
[Round "4"]
[White "Kuberczyk, Christoph"]
[Black "Fuchs, Judith"]
[Result "1/2-1/2"]
[ECO "E11"]
[WhiteElo "2225"]
[BlackElo "2289"]
[Annotator "NA"]
[PlyCount "73"]
[EventDate "2018.07.05"]
[EventType "tourn"]
[EventCountry "GER"]
[SourceTitle "playchess.com"]
[Source "ChessBase"]
[SourceQuality "1"]
[TimeControl "40/5400+30:1800+30"]

1. d4 {[%emt 0:00:00]} Nf6 {[%emt 0:00:00]} 2. c4 {[%emt 0:00:00]} e6 {[%emt 0:00:00]} 3. Nf3 {[%emt 0:00:00]} Bb4+ {[%emt 0:00:00]} 4. Bd2 {[%emt 0:00:01]} c5 {[%emt 0:00:00]} 5. Bxb4 {[%emt 0:00:16]} cxb4 {[%emt 0:00:05]} 6. g3 {[%emt 0:00:34]} b6 {[%emt 0:01:00]} 7. Bg2 {[%emt 0:02:18]} Bb7 {[%emt 0:00:13]} 8. O-O {[%emt 0:21:40]} O-O {[%emt 0:01:06]} 9. a3 {[%emt 0:01:26]} Qe7 {[%emt 0:09:56]} 10. Qb3 {[%emt 0:26:54] E16: Queen's Indian: 4 g3 Bb7 5 Bg2 Bb4+} Nc6 {[%emt 0:06:13]} 11. Nbd2 {[%emt 0:01:28]} bxa3 {[%emt 0:11:36]} 12. Qxa3 {[%emt 0:00:54]} Qxa3 $146 {[%emt 0:01:09]} ({Predecessor:} 12... Nb4 13. Rac1 Ne4 14. Nxe4 Bxe4 15. Ne5 Bxg2 16. Kxg2 a5 17. Nd3 Rfc8 {½-½ (66) Shen,Y (2443)-Hou,Y (2602) Ningbo 2011}) 13. Rxa3 {[%emt 0:00:10]} Nb4 {[%emt 0:02:04]} 14. Rc1 {[%emt 0:03:11]} d6 {[%emt 0:04:55]} 15. Rb3 {[%emt 0:08:39]} a5 {[%emt 0:00:24]} 16. Ne1 {[%emt 0:03:27]} Rab8 {[%emt 0:05:09]} 17. Nd3 {[%emt 0:01:30]} Nxd3 {[%emt 0:05:58]} 18. Rxd3 {[%emt 0:00:01]} Rfc8 {[%emt 0:01:52]} 19. Bxb7 {[%emt 0:13:05]} Rxb7 {[%emt 0:00:05]} 20. b4 {[%emt 0:01:50]} a4 {[%emt 0:21:25]} 21. b5 {[%emt 0:00:14]} Kf8 {[%emt 0:04:03]} 22. Ra3 {[%emt 0:01:34]} Ra7 {[%emt 0:00:18]} 23. Rca1 {[%emt 0:00:33]} Rca8 {[%emt 0:01:07]} 24. Nb1 {[%emt 0:00:30]} d5 {[%emt 0:02:44]} 25. c5 {[%emt 0:00:26]} bxc5 {[%emt 0:02:46]} 26. dxc5 {[%emt 0:00:27]} Ne4 {[%emt 0:00:37]} 27. c6 {[%emt 0:03:44]} Rb8 {[%emt 0:01:28]} 28. Nc3 {[%emt 0:01:26]} Nxc3 {[%emt 0:03:49]} 29. Rxc3 {[%emt 0:00:13]} Rc7 {[%emt 0:00:16]} 30. Rb1 {[%emt 0:01:46]} Rb6 {[%emt 0:00:23]} 31. Rb4 {[%emt 0:04:21]} Ke7 {[%emt 0:01:20]} 32. Kf1 {[%emt 0:00:48]} f5 {[%emt 0:05:34]} 33. Ke1 {[%emt 0:01:52]} a3 {[%emt 0:02:11]} 34. Rxa3 {[%emt 0:00:55]} Rcxc6 {[%emt 0:00:27]} 35. Ra7+ {[%emt 0:00:32]} Kf6 {[%emt 0:00:14]} 36. bxc6 {[%emt 0:00:41]} Rxb4 {[%emt 0:00:02]} 37. f4 $11 {[%emt 0:00:26]} 1/2-1/2

[Event "Schachfestival IM 2018"]
[Site "Lueneburg"]
[Date "2018.07.08"]
[Round "4"]
[White "Light, Bjarne"]
[Black "Lubbe, Melanie"]
[Result "1/2-1/2"]
[ECO "A48"]
[WhiteElo "2177"]
[BlackElo "2332"]
[Annotator "NA"]
[PlyCount "216"]
[EventDate "2018.07.05"]
[EventType "tourn"]
[EventCountry "GER"]
[SourceTitle "playchess.com"]
[Source "ChessBase"]
[SourceQuality "1"]
[TimeControl "40/5400+30:1800+30"]

1. d4 {[%emt 0:00:00]} Nf6 {[%emt 0:00:00]} 2. Nf3 {[%emt 0:00:00]} g6 {[%emt 0:00:00]} 3. Bg5 {[%emt 0:00:00]} Bg7 {[%emt 0:00:00]} 4. Nbd2 {[%emt 0:00:00]} d6 {[%emt 0:01:26]} 5. e4 {[%emt 0:00:16]} O-O {[%emt 0:05:07]} 6. c3 {[%emt 0:00:28]} c5 {[%emt 0:08:46]} 7. dxc5 {[%emt 0:00:54]} dxc5 {[%emt 0:00:34]} 8. Bc4 {[%emt 0:00:11]} Nc6 {[%emt 0:02:17]} 9. Qe2 {[%emt 0:01:26] A48: 1 d4 Nf6 2 Nf3 g6: Torre, London and Colle Systems} a6 {[%emt 0:07:32]} (9... Qc7 10. O-O h6 11. Bxf6 Bxf6 12. Qe3 Bg7 13. Qxc5 b6 14. Qe3 Bb7 15. Rfd1 e6 16. Be2 Rfd8 17. Nf1 a6 18. h4 b5 19. N1h2 Rxd1+ 20. Rxd1 {1-0 (35) Harikrishna,P (2744)-Duda,J (2717) Riadh 2017}) 10. a4 {[%emt 0:01:45]} Qc7 $146 {[%emt 0:04:40]} ({Predecessor:} 10... Ng4 11. O-O Nge5 12. Nxe5 Nxe5 13. Bd5 Qc7 14. f4 e6 15. Ba2 h6 16. Bh4 Nc6 {1-0 (51) Chuprikov,D (2334)-Aminov,A (2176) Voronezh 2013}) 11. O-O {[%emt 0:05:28]} h6 {[%emt 0:02:51]} 12. Bh4 {[%emt 0:17:58]} Nh5 {[%emt 0:00:22]} 13. Rfe1 {[%emt 0:04:06]} Bg4 {[%emt 0:10:05]} 14. Qe3 {[%emt 0:04:32]} Ne5 {[%emt 0:16:00]} 15. Nxe5 {[%emt 0:07:19]} Qxe5 {[%emt 0:04:26]} 16. f3 {[%emt 0:05:59]} Bd7 {[%emt 0:01:32]} 17. a5 {[%emt 0:03:01]} Rac8 {[%emt 0:06:21]} 18. Bd5 {[%emt 0:07:51]} Bb5 {[%emt 0:07:19]} 19. Nc4 {[%emt 0:03:08]} Bxc4 {[%emt 0:02:12]} 20. Bxc4 {[%emt 0:00:05]} Rfd8 {[%emt 0:01:23]} 21. Ra3 {[%emt 0:07:32]} Rd7 {[%emt 0:02:10]} 22. Rb3 {[%emt 0:00:29]} g5 {[%emt 0:03:55]} 23. Bf2 {[%emt 0:00:10]} Nf4 {[%emt 0:00:07]} 24. Bg3 {[%emt 0:04:15]} e6 {[%emt 0:01:24]} 25. Bf2 {[%emt 0:09:27]} Bf8 {[%emt 0:00:17]} 26. g3 {[%emt 0:02:35]} Nh3+ {[%emt 0:02:11]} 27. Kg2 {[%emt 0:00:16]} Nxf2 {[%emt 0:00:04]} 28. Qxf2 {[%emt 0:00:31]} Qc7 {[%emt 0:01:33]} 29. f4 {[%emt 0:01:50]} Rcd8 {[%emt 0:01:23]} 30. f5 {[%emt 0:00:38]} Rd2 {[%emt 0:00:58]} 31. Re2 {[%emt 0:00:26]} Rxe2 {[%emt 0:00:28]} 32. Qxe2 {[%emt 0:00:06]} exf5 {[%emt 0:01:32]} 33. exf5 {[%emt 0:00:44]} Qc6+ {[%emt 0:00:50]} 34. Kh3 {[%emt 0:01:17]} Qd7 {[%emt 0:02:35]} 35. Qg4 {[%emt 0:04:37]} ({Besser ist} 35. Qe4 $16 Re8 36. Qg4) 35... Re8 {[%emt 0:00:55]} 36. Rb6 {[%emt 0:01:16]} Bd6 {[%emt 0:00:59]} 37. Qf3 {[%emt 0:02:41]} Re7 {[%emt 0:01:20]} 38. Qd5 {[%emt 0:02:59]} Be5 {[%emt 0:01:16]} 39. Qxd7 {[%emt 0:01:54]} Rxd7 {[%emt 0:00:01]} 40. Rxh6 {[%emt 0:00:42]} Kg7 {[%emt 0:01:39]} 41. Rb6 {[%emt 0:30:36]} Bf6 {[%emt 0:02:31]} 42. Bf1 {[%emt 0:00:00]} Bd8 {[%emt 0:01:58]} 43. Rb3 {[%emt 0:00:00]} Bxa5 {[%emt 0:05:07]} 44. Bg2 {[%emt 0:00:00]} b6 {[%emt 0:04:50]} 45. Bf1 {[%emt 0:00:00]} Kf6 {[%emt 0:02:46]} 46. Bxa6 {[%emt 0:00:00]} Rd2 {[%emt 0:00:15]} 47. c4 {[%emt 0:00:00]} Kxf5 {[%emt 0:00:48]} 48. Rf3+ {[%emt 0:00:00]} Kg6 {[%emt 0:00:20]} 49. Bc8 {[%emt 0:00:00]} Rxb2 {[%emt 0:00:11]} 50. Bf5+ {[%emt 0:00:00]} Kg7 {[%emt 0:00:05]} 51. Be4 {[%emt 0:00:00]} Re2 {[%emt 0:01:55]} 52. Bd3 {[%emt 0:00:00]} Rd2 {[%emt 0:00:40]} 53. Kg4 {[%emt 0:00:00]} Rxh2 {[%emt 0:02:44]} 54. Kxg5 {[%emt 0:00:00]} Bc3 {[%emt 0:01:19]} 55. g4 {[%emt 0:00:00]} Rh1 {[%emt 0:04:24]} 56. Be4 {[%emt 0:01:00]} Bd2+ {[%emt 0:00:39]} 57. Kf5 {[%emt 0:00:04]} Rc1 {[%emt 0:00:54]} 58. Bd5 {[%emt 0:00:57]} Re1 {[%emt 0:00:20]} 59. Ra3 {[%emt 0:01:03]} Re7 {[%emt 0:02:02]} 60. Rb3 {[%emt 0:00:42]} Bb4 {[%emt 0:01:13]} 61. Rd3 {[%emt 0:01:00]} Re2 {[%emt 0:00:29]} 62. Be4 {[%emt 0:01:14]} Be1 {[%emt 0:01:41]} 63. Bf3 {[%emt 0:01:08]} Rf2 {[%emt 0:00:43]} 64. Ke4 {[%emt 0:00:45]} Ba5 {[%emt 0:00:53]} 65. Kf5 {[%emt 0:00:39]} Rf1 {[%emt 0:00:37]} 66. Ke4 {[%emt 0:00:32]} Kg6 {[%emt 0:00:19]} 67. Rd5 {[%emt 0:00:51]} Rc1 {[%emt 0:00:48]} 68. Be2 {[%emt 0:00:12]} Re1 {[%emt 0:00:43]} 69. Kf3 {[%emt 0:00:08]} Kg7 {[%emt 0:00:28]} 70. Bd3 {[%emt 0:01:00]} Bc3 {[%emt 0:00:22]} 71. Rd6 {[%emt 0:01:34]} Bd4 {[%emt 0:00:27]} 72. Be2 {[%emt 0:00:20]} Rb1 {[%emt 0:00:11]} 73. Bd3 {[%emt 0:00:43]} Rb3 {[%emt 0:00:38]} 74. Ke4 {[%emt 0:00:44]} Rb2 {[%emt 0:00:19]} 75. Kd5 {[%emt 0:01:07]} Bf6 {[%emt 0:00:56]} 76. Kc6 {[%emt 0:00:18]} Bc3 {[%emt 0:02:10]} 77. Kb7 {[%emt 0:00:49]} Ba5 {[%emt 0:00:14]} 78. Kc6 {[%emt 0:00:17]} Rg2 {[%emt 0:00:39]} 79. Bf5 {[%emt 0:00:19]} Rf2 {[%emt 0:00:06]} 80. Rd7 {[%emt 0:00:44]} Rf4 {[%emt 0:00:35]} 81. Kb5 {[%emt 0:00:32]} Rf2 {[%emt 0:01:54]} 82. Be6 {[%emt 0:00:54]} Kg6 {[%emt 0:00:41]} 83. Bd5 {[%emt 0:00:10]} Rf4 {[%emt 0:00:24]} 84. Kc6 {[%emt 0:00:28]} f6 {[%emt 0:00:53]} 85. Be6 {[%emt 0:00:08]} Kg5 {[%emt 0:00:34]} 86. Rg7+ {[%emt 0:00:15]} Kh4 {[%emt 0:00:22]} 87. Rg6 {[%emt 0:00:21]} Kg3 {[%emt 0:01:04]} 88. Kb5 {[%emt 0:00:30]} Bc3 {[%emt 0:00:33]} 89. Kxb6 {[%emt 0:00:18]} Bd4 {[%emt 0:00:04]} 90. Kc6 {[%emt 0:00:38]} Re4 {[%emt 0:00:17]} 91. Kd6 {[%emt 0:01:28]} Kf4 {[%emt 0:00:24]} 92. Rg8 {[%emt 0:00:34]} Re1 {[%emt 0:00:18]} 93. Rg6 {[%emt 0:00:46]} Ra1 {[%emt 0:00:06]} 94. Bf5 {[%emt 0:00:31]} Ra6+ {[%emt 0:00:26]} 95. Kd5 {[%emt 0:00:28]} Ra8 {[%emt 0:00:35]} 96. Rg7 {[%emt 0:00:34]} Re8 {[%emt 0:00:54]} 97. Be6 {[%emt 0:00:15]} Rb8 {[%emt 0:00:30]} 98. Bf5 {[%emt 0:00:28]} Rb2 {[%emt 0:00:35]} 99. Rg8 {[%emt 0:00:23]} Rd2 {[%emt 0:00:21]} 100. Re8 {[%emt 0:00:33]} Bf2+ {[%emt 0:00:25]} 101. Ke6 {[%emt 0:00:40]} Bd4 {[%emt 0:00:23]} 102. Kd5 {[%emt 0:00:10]} Rd1 $11 {[%emt 0:00:49]} 103. Re4+ {[%emt 0:00:33]} Kg5 {[%emt 0:00:06]} 104. Re8 {[%emt 0:00:05]} Bf2+ {[%emt 0:00:28]} 105. Ke6 {[%emt 0:00:44]} Bd4 {[%emt 0:00:43]} 106. Rg8+ {[%emt 0:00:17]} Kf4 {[%emt 0:00:05]} 107. Kd5 {[%emt 0:00:03]} Re1 {[%emt 0:00:31]} 108. Be6 {[%emt 0:00:26]} Re5+ {[%emt 0:01:10]} 1/2-1/2

[Event "Schachfestival IM 2018"]
[Site "Lueneburg"]
[Date "2018.07.10"]
[Round "6"]
[White "Mirzoev, Azer"]
[Black "Wenzel, Birger"]
[Result "1-0"]
[ECO "D31"]
[WhiteElo "2506"]
[BlackElo "2084"]
[Annotator "ChessBase"]
[PlyCount "85"]
[EventDate "2018.07.05"]
[EventType "tourn"]
[EventCountry "GER"]
[SourceTitle "playchess.com"]
[Source "ChessBase"]
[SourceQuality "1"]
[TimeControl "40/5400+30:1800+30"]

1. d4 {[%emt 0:03:19]} d5 {[%emt 0:00:00]} 2. c4 {[%emt 0:00:05]} e6 {[%emt 0:00:00]} 3. Nc3 {[%emt 0:00:05]} a6 {[%emt 0:00:00]} 4. cxd5 {[%emt 0:00:22]} exd5 {[%emt 0:00:00]} 5. Nf3 {[%emt 0:00:14]} c6 {[%emt 0:00:06]} 6. Bf4 {[%emt 0:01:04]} Bd6 {[%emt 0:00:06]} 7. Bg3 {[%emt 0:00:09]} Ne7 {[%emt 0:04:01]} 8. e3 {[%emt 0:01:02]} O-O {[%emt 0:02:49]} 9. Qb3 {[%emt 0:00:33]} Nf5 {[%emt 0:24:35]} 10. Bd3 {[%emt 0:00:41]} Ra7 {[%emt 0:06:34]} 11. O-O-O {[%emt 0:00:33]} Be6 {[%emt 0:08:20]} 12. Qc2 {[%emt 0:01:31]} g6 {[%emt 0:01:49]} 13. Bxd6 {[%emt 0:04:44]} Nxd6 {[%emt 0:03:27]} 14. h4 {[%emt 0:00:08]} Nd7 {[%emt 0:06:08]} 15. h5 {[%emt 0:01:10]} Bf5 {[%emt 0:00:49]} 16. Bxf5 {[%emt 0:01:55]} Nxf5 {[%emt 0:00:22]} 17. Rh3 {[%emt 0:00:16]} Nf6 {[%emt 0:03:22]} 18. Ne5 {[%emt 0:01:50]} Qe8 {[%emt 0:06:01]} 19. hxg6 {[%emt 0:01:20]} fxg6 {[%emt 0:00:10]} 20. g4 {[%emt 0:01:06]} Nd6 {[%emt 0:00:14]} 21. Rdh1 {[%emt 0:00:35]} b5 {[%emt 0:00:46]} 22. f4 {[%emt 0:00:31]} Nc4 {[%emt 0:03:32]} 23. g5 {[%emt 0:04:27]} Nh5 {[%emt 0:04:41]} 24. b3 {[%emt 0:05:21]} Nd6 {[%emt 0:01:33]} 25. Kb2 {[%emt 0:04:06]} a5 {[%emt 0:00:50]} 26. Ne2 {[%emt 0:11:23]} Rc7 {[%emt 0:03:51]} 27. Nc1 {[%emt 0:04:13]} Ne4 {[%emt 0:01:14]} 28. Ncd3 {[%emt 0:00:14]} b4 {[%emt 0:01:28]} 29. Nc5 {[%emt 0:01:00]} Nd6 {[%emt 0:04:56]} 30. R1h2 {[%emt 0:03:35]} Nf5 {[%emt 0:02:21]} 31. Qd3 {[%emt 0:02:42]} Ra7 {[%emt 0:02:49]} 32. Rc2 {[%emt 0:02:44]} Nd6 {[%emt 0:02:54]} 33. Na4 {[%emt 0:01:11]} Qe6 {[%emt 0:03:14]} 34. Rh1 {[%emt 0:01:23]} Qf5 {[%emt 0:00:29]} 35. Rxc6 {[%emt 0:02:23]} Ne4 {[%emt 0:01:52]} 36. Rhc1 {[%emt 0:03:25]} Ng7 {[%emt 0:01:02]} 37. Qb5 {[%emt 0:08:10]} Rd8 {[%emt 0:00:17]} 38. Rc7 {[%emt 0:00:33]} Rxc7 {[%emt 0:00:44]} 39. Rxc7 {[%emt 0:00:08]} Nf2 {[%emt 0:00:27]} 40. Qxa5 {[%emt 0:05:40]} Nd1+ {[%emt 0:00:13]} 41. Kc1 {[%emt 0:32:43]} Nxe3 {[%emt 0:31:05]} 42. Rxg7+ {[%emt 0:04:54]} Kxg7 {[%emt 0:00:16]} 43. Qc7+ {[%emt 0:00:03]} 1-0